fUST/lending_fUST_20240902
["ID","MTS","AMOUNT","RATE_DAILY","PERIOD"]
[336888768,1725233455192,-500.0,0.00025205,2]
[336888769,1725233455201,-2592.72,0.00025205,2]
[336888770,1725233455210,-2904.86,0.00025205,2]
[336888771,1725233455220,-500.0,0.00025205,2]
[336888772,1725233455230,-500.0,0.00025205,2]
[336888773,1725233455240,-500.0,0.00025205,2]
[336888774,1725233455249,-794.89,0.00025205,2]
[336888775,1725233455258,-1368.99,0.00025205,2]
[336888776,1725233455268,-500.0,0.00025205,2]
[336888777,1725233455277,-500.0,0.00025205,2]
[336888778,1725233455287,-1021.59,0.00025205,2]
[336888779,1725233455296,-500.0,0.00025205,2]
[336888780,1725233455312,-500.0,0.00025205,2]
[336888781,1725233455321,-1683.33,0.00025205,2]
[336888782,1725233455331,-803.65,0.00025205,2]
[336888783,1725233455341,-500.0,0.00025205,2]
[336888784,1725233455351,-500.0,0.00025205,2]
[336888785,1725233455360,-500.0,0.00025205,2]
[336888786,1725233455370,-695.67,0.00025205,2]
[336888787,1725233455380,-500.0,0.00025205,2]
[336888788,1725233455390,-500.0,0.00025205,2]
[336888789,1725233455400,-500.0,0.00025205,2]
[336888790,1725233455410,-1497.58,0.00025205,2]
[336888791,1725233455420,-1579.75,0.00025205,2]
[336888792,1725233455430,-1619.26,0.00025205,2]
[336888793,1725233455439,-500.0,0.00025205,2]
[336888794,1725233455449,-652.33,0.00025205,2]
[336888795,1725233455458,-500.0,0.00025205,2]
[336888796,1725233455468,-1364.17,0.00025205,2]
[336888797,1725233455477,-771.48,0.00025205,2]
[336888798,1725233455487,-1158.56,0.00025205,2]
[336888799,1725233455496,-508.11,0.00025205,2]
[336888800,1725233455505,-500.0,0.00025205,2]
[336888801,1725233455514,-500.0,0.00025205,2]
[336888802,1725233455524,-802.51,0.00025205,2]
[336888803,1725233455534,-1289.72,0.00025205,2]
[336888804,1725233455543,-500.0,0.00025205,2]
[336888805,1725233455554,-500.0,0.00025205,2]
[336888806,1725233455564,-500.0,0.00025205,2]
[336888807,1725233455573,-500.0,0.00025205,2]
[336888808,1725233455583,-500.0,0.00025205,2]
[336888809,1725233455593,-628.61,0.00025205,2]
[336888810,1725233455602,-525.64337703,0.00025205,2]
[336888811,1725233455612,-1891.36,0.00025205,2]
[336888812,1725233455621,-1291.81,0.00025205,2]
[336888813,1725233455631,-697.16,0.00025205,2]
[336888814,1725233455641,-1697.09,0.00025205,2]
[336888815,1725233455650,-500.0,0.00025205,2]
[336888816,1725233455660,-500.0,0.00025205,2]
[336888817,1725233455669,-1800.22,0.00025205,2]
[336888818,1725233455682,-500.0,0.00025205,2]
[336888819,1725233455692,-500.0,0.00025205,2]
[336888820,1725233455702,-306.81856574,0.00025205,2]
[336888821,1725233455713,-625.64,0.00025205,2]
[336888822,1725233455722,-1207.6,0.00025205,2]
[336888823,1725233455732,-729.96,0.00025205,2]
[336888824,1725233455742,-500.0,0.00025205,2]
[336888825,1725233455751,-2946.26,0.00025205,2]
[336888826,1725233455760,-504.54,0.00025205,2]
[336888827,1725233455770,-500.0,0.00025205,2]
[336888828,1725233455780,-8915.77,0.00025205,2]
[336888829,1725233455790,-500.0,0.00025205,2]
[336888830,1725233455804,-1725.92,0.00025205,2]
[336888831,1725233455813,-500.0,0.00025205,2]
[336888832,1725233455823,-500.0,0.00025205,2]
[336888833,1725233455833,-500.0,0.00025205,2]
[336888834,1725233455843,-1410.55,0.00025205,2]
[336888835,1725233455852,-1193.98,0.00025205,2]
[336888836,1725233455862,-3356.77,0.00025205,2]
[336888837,1725233455873,-500.0,0.00025205,2]
[336888838,1725233455883,-500.0,0.00025205,2]
[336888839,1725233455892,-1701.97,0.00025205,2]
[336888840,1725233455902,-1240.79,0.00025205,2]
[336888841,1725233455912,-2345.51,0.00025205,2]
[336888842,1725233455922,-500.0,0.00025205,2]
[336888843,1725233455931,-1963.27,0.00025205,2]
[336888844,1725233455944,-500.0,0.00025205,2]
[336888845,1725233455954,-500.0,0.00025205,2]
[336888846,1725233455964,-5236.57,0.00025205,2]
[336888847,1725233455974,-595.48,0.00025205,2]
[336888848,1725233455984,-500.0,0.00025205,2]
[336888849,1725233455993,-500.0,0.00025205,2]
[336888850,1725233456003,-643.02,0.00025205,2]
[336888851,1725233456012,-2120.18,0.00025205,2]
[336888852,1725233456023,-1279.5,0.00025205,2]
[336888853,1725233456032,-500.0,0.00025205,2]
[336888854,1725233456042,-500.0,0.00025205,2]
[336888855,1725233456052,-403.36437749,0.00025205,2]
[336888856,1725233456062,-2008.27,0.00025205,2]
[336888857,1725233456071,-527.81,0.00025205,2]
[336888858,1725233456081,-1425.41,0.00025205,2]
[336888859,1725233456091,-500.0,0.00025205,2]
[336888860,1725233456100,-500.0,0.00025205,2]
[336888861,1725233456111,-1115.86,0.00025205,2]
[336888862,1725233456122,-3000.0,0.0002521,2]
[336888863,1725233456133,-3000.0,0.0002522,2]
[336888864,1725233456144,-1000.0,0.00025221,2]
[336888865,1725233456154,-1000.0,0.00025225,2]
[336888866,1725233456165,-151.0,0.0002523,7]
[336888867,1725233456174,-151.0,0.0002523,7]
[336888868,1725233456184,-3000.0,0.0002523,2]
[336888869,1725233456194,-3000.0,0.0002524,2]
[336888870,1725233456203,-1000.0,0.00025241,2]
[336888871,1725233456212,-3000.0,0.0002525,2]
[336888872,1725233456222,-3000.0,0.0002526,2]
[336888873,1725233456231,-1000.0,0.00025262,2]
[336888874,1725233456241,-1000.0,0.00025267,2]
[336888875,1725233456250,-3000.0,0.0002527,2]
[336888876,1725233456259,-150.0,0.00025273,2]
[336888877,1725233456269,-1000.0,0.00025276,2]
[336888878,1725233456278,-1000.0,0.00025278,2]
[336888879,1725233456287,-3000.0,0.0002528,2]
[336888880,1725233456297,-3000.0,0.0002529,2]
[336888881,1725233456307,-150.112233,0.000253,6]
[336888882,1725233456317,-150.112233,0.000253,9]
[336888883,1725233456326,-3000.0,0.000253,2]
[336888884,1725233456336,-1000.0,0.00025301,2]
[336888885,1725233456346,-1000.0,0.00025303,2]
[336888886,1725233456356,-3000.0,0.0002531,2]
[336888887,1725233456366,-3000.0,0.0002532,2]
[336888888,1725233456375,-1000.0,0.00025324,2]
[336888889,1725233456384,-3000.0,0.0002533,2]
[336888890,1725233456394,-3000.0,0.0002534,2]
[336888891,1725233456403,-300.0,0.0002534,2]
[336888892,1725233456412,-3000.0,0.0002535,2]
[336888893,1725233456423,-1000.0,0.00025351,2]
[336888894,1725233456433,-1000.0,0.00025352,2]
[336888895,1725233456444,-243.5034,0.00025352,2]
[336888896,1725233456456,-1000.0,0.00025359,2]
[336888897,1725233456466,-3000.0,0.0002536,2]
[336888898,1725233456475,-3000.0,0.0002537,2]
[336888899,1725233456484,-305.15850004,0.00025373,2]
[336888900,1725233456494,-153.71,0.00025379,7]
[336888901,1725233456503,-154.68,0.00025379,7]
[336888902,1725233456512,-3000.0,0.0002538,2]
[336888903,1725233456522,-1000.0,0.00025383,2]
[336888904,1725233456531,-1000.0,0.00025384,2]
[336888905,1725233456540,-3000.0,0.0002539,2]
[336888906,1725233456550,-150.112233,0.000254,7]
[336888907,1725233456561,-150.112233,0.000254,10]
[336888908,1725233456570,-3000.0,0.000254,2]
[336888909,1725233456579,-382.07053845,0.00025402,2]
[336888910,1725233456589,-1000.0,0.00025409,2]
[336888911,1725233456598,-3000.0,0.0002541,2]
[336888912,1725233456607,-3960.48637417,0.0002541,2]
[336888913,1725233456617,-3000.0,0.0002542,2]
[336888914,1725233456626,-150.0,0.0002542,2]
[336888915,1725233456635,-1000.0,0.00025421,2]
[336888916,1725233456645,-1000.0,0.00025424,2]
[336888917,1725233456654,-3000.0,0.0002543,2]
[336888918,1725233456663,-3000.0,0.0002544,2]
[336888919,1725233456673,-1000.0,0.0002544,2]
[336888920,1725233456682,-3000.0,0.0002545,2]
[336888921,1725233456691,-3000.0,0.0002546,2]
[336888922,1725233456701,-3000.0,0.0002547,2]
[336888923,1725233456711,-408.01088945,0.00025478,2]
[336888924,1725233456720,-7723.2727642,0.00025478,2]
[336888925,1725233456730,-864.97,0.00025478,2]
[336888926,1725233456739,-500.0,0.00025478,2]
[336888927,1725233456749,-420.0,0.00025478,2]
[336888928,1725233456759,-500.0,0.00025479,2]
[336888929,1725233456768,-571.96,0.00025479,2]
[336888930,1725233456777,-500.0,0.00025479,2]
[336888931,1725233456787,-500.0,0.00025479,2]
[336888932,1725233456800,-500.0,0.00025479,2]
[336888933,1725233456812,-500.0,0.00025479,2]
[336888934,1725233456821,-500.0,0.00025479,2]
[336888935,1725233456830,-500.0,0.00025479,2]
[336888936,1725233456841,-500.0,0.00025479,2]
[336888937,1725233456851,-500.0,0.00025479,2]
[336888938,1725233456860,-500.0,0.00025479,2]
[336888939,1725233456871,-753.39,0.00025479,2]
[336888940,1725233456880,-500.0,0.00025479,2]
[336888941,1725233456889,-151.0,0.00025479,7]
[336888942,1725233456899,-500.0,0.00025479,2]
[336888943,1725233456908,-536.96617675,0.00025479,2]
[336888944,1725233456918,-500.0,0.00025479,2]
[336888945,1725233456928,-500.0,0.00025479,2]
[336888946,1725233456937,-500.0,0.00025479,2]
[336888947,1725233456947,-500.0,0.00025479,2]
[336888948,1725233456956,-500.0,0.00025479,2]
[336888949,1725233456966,-500.0,0.00025479,2]
[336888950,1725233456976,-504.48033631,0.00025479,2]
[336888951,1725233456986,-500.0,0.00025479,2]
[336888952,1725233456996,-506.87810962,0.00025479,2]
[336888953,1725233457006,-500.0,0.00025479,2]
[336888954,1725233457015,-394.65511845,0.00025479,2]
[336888955,1725233457024,-500.0,0.00025479,2]
[336888956,1725233457033,-505.91722269,0.00025479,2]
[336888957,1725233457043,-500.0,0.00025479,2]
[336888958,1725233457052,-196.7526298,0.00025479,2]
[336888959,1725233457070,-532.2,0.00025479,2]
[336888960,1725233457080,-609.68,0.00025479,2]
[336888961,1725233457089,-500.0,0.00025479,2]
[336888962,1725233457098,-500.0,0.00025479,2]
[336888963,1725233457108,-758.27,0.00025479,2]
[336888964,1725233457117,-500.0,0.00025479,2]
[336888965,1725233457127,-795.29,0.00025479,2]
[336888966,1725233457136,-500.0,0.00025479,2]
[336888967,1725233457146,-753.32,0.00025479,2]
[336888968,1725233457157,-500.0,0.00025479,2]
[336888969,1725233457167,-500.0,0.00025479,2]
[336888970,1725233457177,-500.0,0.00025479,2]
[336888971,1725233457187,-500.0,0.00025479,2]
[336888972,1725233457197,-200.0,0.00025479,2]
[336888973,1725233457206,-500.0,0.00025479,2]
[336888974,1725233457216,-500.0,0.00025479,2]
[336888975,1725233457226,-500.0,0.00025479,2]
[336888976,1725233457236,-672.7,0.00025479,2]
[336888977,1725233457246,-500.0,0.00025479,2]
[336888978,1725233457256,-500.0,0.00025479,2]
[336888979,1725233457265,-1363.94,0.00025479,2]
[336888980,1725233457275,-911.13,0.00025479,2]
[336888981,1725233457285,-500.0,0.00025479,2]
[336888982,1725233457295,-500.0,0.00025479,2]
[336888983,1725233457306,-500.0,0.00025479,2]
[336888984,1725233457318,-500.0,0.00025479,2]
[336888985,1725233457329,-500.0,0.00025479,2]
[336888986,1725233457340,-763.69,0.00025479,2]
[336888987,1725233457352,-500.0,0.00025479,2]
[336888988,1725233457362,-500.0,0.00025479,2]
[336888989,1725233457372,-500.0,0.00025479,2]
[336888990,1725233457383,-1013.08,0.00025479,2]
[336888991,1725233457393,-500.0,0.00025479,2]
[336888992,1725233457402,-500.0,0.00025479,2]
[336888993,1725233457412,-500.0,0.00025479,2]
[336888994,1725233457422,-1349.69,0.00025479,2]
[336888995,1725233457432,-526.21,0.00025479,2]
[336888996,1725233457441,-500.0,0.00025479,2]
[336888997,1725233457451,-500.0,0.00025479,2]
[336888998,1725233457461,-500.0,0.00025479,2]
[336888999,1725233457471,-500.0,0.00025479,2]
[336889000,1725233457480,-500.0,0.00025479,2]
[336889001,1725233457490,-500.0,0.00025479,2]
[336889002,1725233457501,-500.0,0.00025479,2]
[336889003,1725233457510,-176.90945779,0.00025479,2]
[336889004,1725233457519,-500.0,0.00025479,2]
[336889005,1725233457529,-500.0,0.00025479,2]
[336889006,1725233457538,-500.0,0.00025479,2]
[336889007,1725233457548,-500.0,0.00025479,2]
[336889008,1725233457560,-500.0,0.00025479,2]
[336889009,1725233457569,-607.58,0.00025479,2]
[336889010,1725233457579,-500.0,0.00025479,2]
[336889011,1725233457589,-500.0,0.00025479,2]
[336889012,1725233457598,-500.0,0.00025479,2]
[336889013,1725233457607,-500.0,0.00025479,2]
[336889014,1725233457617,-4139.23,0.00025479,2]
[336889015,1725233457627,-500.0,0.00025479,2]
[336889016,1725233457636,-500.0,0.00025479,2]
[336889017,1725233457646,-500.0,0.00025479,2]
[336889018,1725233457655,-500.0,0.00025479,2]
[336889019,1725233457664,-500.0,0.00025479,2]
[336889020,1725233457674,-500.0,0.00025479,2]
[336889021,1725233457683,-500.0,0.00025479,2]
[336889022,1725233457692,-500.0,0.00025479,2]
[336889023,1725233457701,-500.0,0.00025479,2]
[336889024,1725233457710,-500.0,0.00025479,2]
[336889025,1725233457720,-1325.14,0.00025479,2]
[336889026,1725233457728,-500.0,0.00025479,2]
[336889027,1725233457737,-500.0,0.00025479,2]
[336889028,1725233457747,-500.0,0.00025479,2]
[336889029,1725233457756,-672.27,0.00025479,2]
[336889030,1725233457766,-500.0,0.00025479,2]
[336889031,1725233457775,-639.87,0.00025479,2]
[336889032,1725233457784,-151.0,0.00025479,7]
[336889033,1725233457793,-500.0,0.00025479,2]
[336889034,1725233457806,-282.0,0.00025479,7]
[336889035,1725233457815,-870.86,0.00025479,2]
[336889036,1725233457825,-500.0,0.00025479,2]
[336889037,1725233457834,-689.79,0.00025479,2]
[336889038,1725233457845,-461.40907727,0.00025479,2]
[336889039,1725233457854,-759.55,0.00025479,2]
[336889040,1725233457863,-500.0,0.00025479,2]
[336889041,1725233457873,-473.71017254,0.00025479,2]
[336889042,1725233457885,-850.64,0.00025479,2]
[336889043,1725233457895,-500.0,0.00025479,2]
[336889044,1725233457905,-500.0,0.00025479,2]
[336889045,1725233457914,-500.0,0.00025479,2]
[336889046,1725233457925,-500.0,0.00025479,2]
[336889047,1725233457934,-500.0,0.00025479,2]
[336889048,1725233457944,-500.0,0.00025479,2]
[336889049,1725233457952,-500.0,0.00025479,2]
[336889050,1725233457963,-500.0,0.00025479,2]
[336889051,1725233457971,-500.0,0.00025479,2]
[336889052,1725233457980,-669.82,0.00025479,2]
[336889053,1725233457990,-500.0,0.00025479,2]
[336889054,1725233458000,-578.34,0.00025479,2]
[336889055,1725233458009,-647.61,0.00025479,2]
[336889056,1725233458018,-1239.9,0.00025479,2]
[336889057,1725233458029,-500.0,0.00025479,2]
[336889058,1725233458039,-500.0,0.00025479,2]
[336889059,1725233458048,-500.0,0.00025479,2]
[336889060,1725233458058,-500.0,0.00025479,2]
[336889061,1725233458068,-500.0,0.00025479,2]
[336889062,1725233458078,-500.0,0.00025479,2]
[336889063,1725233458087,-1014.8,0.00025479,2]
[336889064,1725233458098,-500.0,0.00025479,2]
[336889065,1725233458108,-500.0,0.00025479,2]
[336889066,1725233458118,-500.0,0.00025479,2]
[336889067,1725233458127,-955.98,0.00025479,2]
[336889068,1725233458136,-206.020974,0.00025479,7]
[336889069,1725233458146,-206.020974,0.00025479,7]
[336889070,1725233458155,-420.25974606,0.00025479,2]
[336889071,1725233458164,-500.0,0.00025479,2]
[336889072,1725233458174,-1146.54,0.00025479,2]
[336889073,1725233458311,-500.0,0.00025479,2]
[336889074,1725233458323,-670.81,0.00025479,2]
[336889075,1725233458332,-354.29299928,0.00025479,2]
[336889076,1725233458341,-500.0,0.00025479,2]
[336889077,1725233458353,-781.11,0.00025479,2]
[336889078,1725233458363,-500.0,0.00025479,2]
[336889079,1725233458373,-500.0,0.00025479,2]
[336889080,1725233458382,-1712.49,0.00025479,2]
[336889081,1725233458391,-500.0,0.00025479,2]
[336889082,1725233458401,-500.0,0.00025479,2]
[336889083,1725233458411,-500.0,0.00025479,2]
[336889084,1725233458420,-500.0,0.00025479,2]
[336889085,1725233458430,-500.0,0.00025479,2]
[336889086,1725233458439,-500.0,0.00025479,2]
[336889087,1725233458449,-500.0,0.00025479,2]
[336889088,1725233458458,-500.0,0.00025479,2]
[336889089,1725233458467,-2272.43,0.00025479,2]
[336889090,1725233458477,-500.0,0.00025479,2]
[336889091,1725233458486,-500.0,0.00025479,2]
[336889092,1725233458495,-500.0,0.00025479,2]
[336889093,1725233458505,-500.0,0.00025479,2]
[336889094,1725233458515,-562.25058744,0.00025479,2]
[336889095,1725233458524,-500.0,0.00025479,2]
[336889096,1725233458534,-866.18,0.00025479,2]
[336889097,1725233458543,-500.0,0.00025479,2]
[336889098,1725233458553,-500.0,0.00025479,2]
[336889099,1725233458562,-580.07,0.00025479,2]
[336889100,1725233458571,-1098.35,0.00025479,2]
[336889101,1725233458581,-510.32,0.00025479,2]
[336889102,1725233458590,-2246.05,0.00025479,2]
[336889103,1725233458599,-500.0,0.00025479,2]
[336889104,1725233458609,-719.56,0.00025479,2]
[336889105,1725233458619,-1653.39,0.00025479,2]
[336889106,1725233458628,-503.80731625,0.00025479,2]
[336889107,1725233458656,-1045.81268375,0.00025479,2]
[336889108,1725233458665,-500.0,0.00025479,2]
[336889109,1725233458675,-909.05,0.00025479,2]
[336889110,1725233458684,-884.34,0.00025479,2]
[336889111,1725233458694,-500.0,0.00025479,2]
[336889112,1725233458703,-187.89479241,0.00025479,2]
[336889113,1725233458713,-1700.20252384,0.00025479,2]
[336889114,1725233459316,-570.14976887,0.00024657,2]
[336889115,1725233459326,-500.0,0.00024657,2]
[336889116,1725233459335,-500.0,0.00024657,2]
[336889117,1725233459345,-623.96,0.00024657,2]
[336889118,1725233459354,-500.0,0.00024657,2]
[336889119,1725233459363,-500.0,0.00024931,2]
[336889120,1725233459372,-500.0,0.00025205,2]
[336889121,1725233459382,-580.26747616,0.00025479,2]
[336889122,1725233459391,-500.0,0.00025479,2]
[336889123,1725233459400,-500.0,0.00025479,2]
[336889124,1725233459409,-1522.86,0.00025479,2]
[336889125,1725233459418,-500.0,0.00025479,2]
[336889126,1725233459428,-596.72,0.00025479,2]
[336889127,1725233459437,-1975.9,0.00025479,2]
[336889128,1725233459446,-503.56710317,0.00025479,2]
[336889129,1725233459455,-2241.93,0.00025479,2]
[336889130,1725233459465,-712.218596,0.00025479,7]
[336889131,1725233459474,-712.218596,0.00025479,7]
[336889132,1725233459483,-556.85,0.00025479,2]
[336889133,1725233459492,-740.31,0.00025479,2]
[336889134,1725233459502,-1370.86,0.00025479,2]
[336889135,1725233459511,-712.218596,0.00025479,7]
[336889136,1725233459520,-712.218596,0.00025479,7]
[336889137,1725233459529,-500.0,0.00025479,2]
[336889138,1725233459538,-500.0,0.00025479,2]
[336889139,1725233459547,-500.0,0.00025479,2]
[336889140,1725233459558,-757.7,0.00025479,2]
[336889141,1725233459567,-500.0,0.00025479,2]
[336889142,1725233459576,-500.0,0.00025479,2]
[336889143,1725233459586,-500.0,0.00025479,2]
[336889144,1725233459596,-500.0,0.00025479,2]
[336889145,1725233459605,-3212.68504938,0.00025479,2]
[336889146,1725233460265,-500.0,0.00024657,2]
[336889147,1725233460275,-500.0,0.00024657,2]
[336889148,1725233460285,-500.0,0.00024657,2]
[336889149,1725233460294,-500.0,0.00024657,2]
[336889150,1725233460306,-527.69,0.00024931,2]
[336889151,1725233460315,-500.0,0.00024931,2]
[336889152,1725233460325,-500.0,0.00024931,2]
[336889153,1725233460335,-500.0,0.00025205,2]
[336889154,1725233460345,-4.65495062,0.00025479,2]
[336889155,1725233460354,-1780.41,0.00025479,2]
[336889156,1725233460364,-500.0,0.00025479,2]
[336889157,1725233460373,-500.0,0.00025479,2]
[336889158,1725233460383,-14185.66,0.00025479,2]
[336889159,1725233460393,-500.0,0.00025479,2]
[336889160,1725233460402,-1568.11,0.00025479,2]
[336889161,1725233460412,-500.0,0.00025479,2]
[336889162,1725233460422,-678.57,0.00025479,2]
[336889163,1725233460466,-500.0,0.00025479,2]
[336889164,1725233460477,-500.0,0.00025479,2]
[336889165,1725233460486,-1769.13,0.00025479,2]
[336889166,1725233460495,-500.0,0.00025479,2]
[336889167,1725233460505,-500.0,0.00025479,2]
[336889168,1725233460514,-1948.8,0.00025479,2]
[336889169,1725233460525,-500.0,0.00025479,2]
[336889170,1725233460533,-531.01,0.00025479,2]
[336889171,1725233460543,-1076.27,0.00025479,2]
[336889172,1725233460553,-2754.06,0.00025479,2]
[336889173,1725233460566,-500.0,0.00025479,2]
[336889174,1725233460576,-500.0,0.00025479,2]
[336889175,1725233460585,-635.95,0.00025479,2]
[336889176,1725233460594,-672.12,0.00025479,2]
[336889177,1725233460604,-500.0,0.00025479,2]
[336889178,1725233460613,-2363.96,0.00025479,2]
[336889179,1725233460623,-779.93,0.00025479,2]
[336889180,1725233460633,-500.0,0.00025479,2]
[336889181,1725233460643,-2592.72,0.00025479,2]
[336889182,1725233460652,-2904.86,0.00025479,2]
[336889183,1725233460662,-393.19664374,0.00025479,2]
[336889184,1725233460671,-258.2864906,0.00025479,2]
[336889185,1725233460681,-500.0,0.00025479,2]
[336889186,1725233460690,-794.89,0.00025479,2]
[336889187,1725233460699,-1368.99,0.00025479,2]
[336889188,1725233460709,-500.0,0.00025479,2]
[336889189,1725233460718,-500.0,0.00025479,2]
[336889190,1725233460728,-1021.59,0.00025479,2]
[336889191,1725233460737,-500.0,0.00025479,2]
[336889192,1725233460746,-690.2632764,0.00025479,2]
[336889193,1725233460767,-993.0667236,0.00025479,2]
[336889194,1725233460776,-803.65,0.00025479,2]
[336889195,1725233460786,-500.0,0.00025479,2]
[336889196,1725233460798,-500.0,0.00025479,2]
[336889197,1725233460811,-500.0,0.00025479,2]
[336889198,1725233460820,-695.67,0.00025479,2]
[336889199,1725233460830,-500.0,0.00025479,2]
[336889200,1725233460839,-511.34820436,0.00025479,2]
[336889201,1725233460850,-1497.58,0.00025479,2]
[336889202,1725233460859,-1579.75,0.00025479,2]
[336889203,1725233460869,-1619.26,0.00025479,2]
[336889204,1725233460879,-500.0,0.00025479,2]
[336889205,1725233460889,-652.33,0.00025479,2]
[336889206,1725233460899,-500.0,0.00025479,2]
[336889207,1725233460908,-303.00227842,0.00025479,2]
[336889208,1725233461154,158.72103912,0.00014247,2]
[336889209,1725233461177,2.23909988,0.00014247,2]
[336889210,1725233640928,-162.331421,0.00023581,2]
[336889211,1725233640954,-300.0,0.00023793,2]
[336889212,1725233640981,-153.638579,0.00023794,2]
[336889213,1725233650970,-14337.0588354,0.00023794,2]
[336889214,1725233652265,-195.595454,0.00023837,2]
[336889215,1725233652288,-420.374546,0.00024657,2]
[336889216,1725233652980,-79.625454,0.00024657,2]
[336889217,1725233653003,-420.374546,0.00024657,2]
[336889218,1725233658355,-79.625454,0.00024657,2]
[336889219,1725233658378,-420.374546,0.00024657,2]
[336889220,1725233662730,-79.625454,0.00024657,2]
[336889221,1725233662759,-420.374546,0.00024657,2]
[336889222,1725233669984,-80.62406987,0.00024657,2]
[336889223,1725233670010,-419.37593013,0.00024657,2]
[336889224,1725233713215,195.595454,0.00023836,2]
[336889226,1725233964093,167.738372,0.00014247,2]
[336889231,1725234484705,170.303741,0.00014247,2]
[336889285,1725234639719,-24900.0,0.00023463,2]
[336889286,1725234639729,-3000.0,0.00023625,2]
[336889287,1725234639739,-195.5954541,0.00023632,2]
[336889288,1725234639748,-353.576101,0.00023836,2]
[336889289,1725234639758,-300.0,0.00024556,2]
[336889294,1725234639939,-209.0,0.00024556,2]
[336889295,1725234639949,-1885.83175249,0.00024557,2]
[336889296,1725234639959,-44976.4160338,0.00024647,3]
[336889297,1725234639969,-4997.37955931,0.00024648,3]
[336889298,1725234639979,-500.0,0.00024656,2]
[336889299,1725234639989,-398.90948891,0.00024656,2]
[336889300,1725234639999,-508.78153529,0.00024657,11]
[336889301,1725234640009,-500.0,0.00024657,2]
[336889302,1725234640018,-500.0,0.00024657,2]
[336889304,1725234640027,-500.0,0.00024657,2]
[336889305,1725234640037,-518.44377906,0.00024657,2]
[336889306,1725234640047,-500.0,0.00024657,2]
[336889307,1725234640057,-470.89626015,0.00024657,2]
[336889308,1725234640066,-500.0,0.00024657,2]
[336889309,1725234640076,-500.0,0.00024657,2]
[336889310,1725234640086,-501.77420178,0.00024657,2]
[336889311,1725234640095,-500.0,0.00024657,2]
[336889312,1725234640105,-500.0,0.00024657,2]
[336889313,1725234640116,-500.0,0.00024657,2]
[336889314,1725234640127,-500.0,0.00024657,2]
[336889315,1725234640136,-500.0,0.00024657,2]
[336889316,1725234640145,-500.0,0.00024657,2]
[336889317,1725234640157,-500.0,0.00024657,2]
[336889318,1725234640166,-500.0,0.00024657,2]
[336889319,1725234640176,-500.0,0.00024657,2]
[336889320,1725234640186,-1408.38,0.00024657,2]
[336889321,1725234640198,-502.63427162,0.00024657,2]
[336889322,1725234640209,-500.0,0.00024657,2]
[336889323,1725234640220,-500.0,0.00024657,2]
[336889324,1725234640230,-500.0,0.00024657,2]
[336889325,1725234640239,-589.75940358,0.00024657,2]
[336889326,1725234640249,-528.79951176,0.00024657,2]
[336889327,1725234640259,-503.61261762,0.00024657,2]
[336889328,1725234640269,-500.0,0.00024657,2]
[336889329,1725234640278,-500.0,0.00024657,2]
[336889330,1725234640288,-500.0,0.00024657,2]